bitfinex/quotes_SOLUSD_20230905
["timestamp","ask_amount","ask_price","bid_price","bid_amount"]
[1693898320255,34.202,19.297,19.285,8.089]
[1693898320561,57.13178083,19.296,19.285,8.089]
[1693898320763,65.21578083,19.296,19.285,8.089]
[1693898321165,63.084,19.296,19.285,8.089]
[1693898321460,8.085,19.294,19.285,8.089]
[1693898321663,55.0,19.293,19.285,8.089]
[1693898322061,63.085,19.293,19.285,8.089]
[1693898323863,55.0,19.293,19.285,34.223]
[1693898325663,55.0,19.294,19.285,34.223]
[1693898328160,151.0448,19.3,19.285,34.223]
[1693898328466,24.0097262,19.299,19.286,0.53693469]
[1693898328763,8.083,19.298,19.289,34.215]
[1693898329060,4.0097262,19.297,19.289,8.087]
[1693898329273,12.0937262,19.297,19.289,8.087]
[1693898329956,4.0097262,19.295,19.289,8.087]
[1693898332551,12.0947262,19.295,19.285,26.133]
[1693898332758,55.0,19.294,19.287,8.087]
[1693898332958,4.0097262,19.293,19.287,8.087]
[1693898335056,63.085,19.294,19.287,8.087]
[1693898335375,55.0,19.294,19.287,8.087]
[1693898335681,1.98669497,19.293,19.287,8.087]
[1693898341871,8.085,19.293,19.285,15.44012441]
[1693898342174,8.085,19.293,19.285,8.088]
[1693898342479,8.086,19.291,19.285,8.088]
[1693898343355,63.086,19.292,19.285,8.088]
[1693898344578,55.0,19.292,19.285,8.088]
[1693898345272,63.086,19.292,19.285,8.088]
[1693898355073,55.0,19.292,19.285,8.088]
[1693898357674,63.086,19.292,19.285,8.088]
[1693898361360,55.0,19.292,19.285,8.088]
[1693898361764,63.086,19.293,19.285,8.088]
[1693898361975,2.09211505,19.292,19.285,8.088]
[1693898362364,10.17811505,19.292,19.285,8.088]
[1693898362564,55.0,19.291,19.285,8.088]
[1693898366079,2.32512566,19.29,19.285,8.088]
[1693898367278,63.086,19.291,19.285,8.088]
[1693898367482,2.02139956,19.29,19.285,8.088]
[1693898367859,2.02139956,19.29,19.28,83.942]
[1693898367860,10.10839956,19.29,19.283,8.089]
[1693898368064,10.10839956,19.29,19.284,8.089]
[1693898368065,55.0,19.289,19.284,8.089]
[1693898368260,63.087,19.289,19.283,8.089]
[1693898374582,63.087,19.289,19.275,8.093]
[1693898374889,63.087,19.289,19.274,8.093]
[1693898374890,22.7289837,19.288,19.274,8.093]
[1693898375183,8.089,19.284,19.274,8.093]
[1693898375380,57.7289837,19.283,19.274,8.093]
[1693898375682,65.8189837,19.283,19.274,8.093]
[1693898375871,63.09,19.283,19.274,8.093]
[1693898376183,2.55560755,19.282,19.274,8.093]
[1693898377163,10.64560755,19.282,19.274,8.093]
[1693898377369,8.09,19.282,19.274,8.093]
[1693898387086,63.09,19.283,19.274,8.093]
[1693898387286,2.17985001,19.282,19.274,8.093]
[1693898388972,63.09,19.283,19.274,8.093]
[1693898389271,2.35412327,19.282,19.274,8.093]
[1693898389472,63.09,19.283,19.274,8.093]
[1693898391583,1.99251391,19.282,19.274,8.093]
[1693898391788,63.09,19.283,19.274,8.093]
[1693898391992,2.08656095,19.282,19.274,8.093]
[1693898392694,10.17656095,19.282,19.274,8.093]
[1693898392880,8.09,19.282,19.274,8.093]
[1693898393075,55.0,19.283,19.274,8.093]
[1693898393280,2.09316263,19.282,19.274,8.093]
[1693898393483,55.0,19.284,19.274,8.093]
[1693898393680,63.089,19.284,19.274,8.093]
[1693898393882,2.04031431,19.283,19.274,8.093]
[1693898394190,8.09,19.282,19.274,8.093]
[1693898397194,8.09,19.282,19.272,42.11312921]
[1693898397382,8.09,19.282,19.273,0.51956454]
[1693898397587,8.09,19.282,19.271,0.53693469]
[1693898397889,2.09086241,19.281,19.271,0.53693469]
[1693898398090,10.18086241,19.281,19.274,8.093]
[1693898398289,8.09,19.281,19.274,8.093]
[1693898403398,8.09,19.281,19.27,85.14315073]
[1693898403588,8.09,19.281,19.274,8.093]
[1693898403894,55.0,19.28,19.274,8.093]
[1693898404097,8.092,19.278,19.273,8.094]
[1693898404499,8.092,19.278,19.272,8.094]
[1693898408105,63.091,19.28,19.272,8.094]
[1693898414410,8.091,19.28,19.272,8.094]
[1693898414709,2.19376052,19.284,19.273,0.53693469]
[1693898414894,2.19376052,19.284,19.276,91.302]
[1693898415092,96.8233,19.285,19.276,91.302]
[1693898415508,8.089,19.285,19.276,91.302]
[1693898415900,55.0,19.284,19.276,91.302]
[1693898416611,55.0,19.285,19.276,91.302]
[1693898416815,1.99050269,19.284,19.276,91.302]
[1693898418422,1.99050269,19.284,19.276,34.238]
[1693898418615,10.07950269,19.284,19.276,8.092]
[1693898418924,55.0,19.283,19.276,8.092]
[1693898419121,63.09,19.283,19.276,8.092]
[1693898419419,55.0,19.283,19.276,8.092]
[1693898420619,63.09,19.283,19.276,8.092]
[1693898422115,89.227,19.283,19.272,0.53693469]
[1693898422521,8.091,19.279,19.273,8.094]
[1693898425909,8.091,19.279,19.272,8.094]
[1693898427031,8.091,19.279,19.27,34.985]
[1693898431610,55.0,19.278,19.27,34.985]
[1693898431815,63.092,19.278,19.27,34.985]
[1693898433229,63.092,19.278,19.27,8.095]
[1693898435426,63.092,19.278,19.269,8.095]
[1693898435927,63.092,19.278,19.27,0.52340301]
[1693898436733,63.092,19.278,19.266,41.36138712]
[1693898436921,63.092,19.278,19.267,20.53693469]
[1693898437630,63.092,19.278,19.269,8.095]
[1693898440628,63.092,19.278,19.267,20.0]
[1693898440825,63.092,19.278,19.266,15.20238712]
[1693898441028,8.093,19.274,19.265,8.097]
[1693898443037,55.0,19.273,19.265,8.097]
[1693898443236,8.095,19.271,19.265,8.097]
[1693898444144,8.095,19.271,19.262,26.164]
[1693898444337,55.0,19.27,19.263,8.098]
[1693898444530,8.096,19.268,19.263,8.098]
[1693898447440,8.096,19.268,19.262,8.098]
[1693898452638,8.096,19.268,19.26,8.099]
[1693898452839,55.0,19.267,19.26,8.099]
[1693898453030,8.097,19.265,19.259,8.1]
[1693898454346,8.097,19.265,19.254,26.175]
[1693898454535,8.097,19.265,19.257,8.1]
[1693898460438,55.0,19.264,19.257,8.1]
[1693898460645,8.098,19.262,19.256,8.101]
[1693898461145,55.0,19.264,19.256,8.101]
[1693898461343,8.098,19.263,19.256,8.101]
[1693898462450,126.4171,19.27,19.256,8.101]
[1693898462651,8.097,19.267,19.256,8.101]
[1693898462950,55.0,19.266,19.256,8.101]
[1693898463249,8.097,19.265,19.256,8.101]
[1693898468664,126.4171,19.27,19.256,8.101]
[1693898468954,126.4171,19.27,19.263,91.366]
[1693898468955,99.5271,19.27,19.263,91.366]
[1693898469952,8.094,19.273,19.263,91.366]
[1693898470250,55.0,19.272,19.263,91.366]
[1693898471348,8.094,19.273,19.263,91.366]
[1693898472750,55.0,19.272,19.263,91.366]
[1693898472952,63.094,19.272,19.263,91.366]
[1693898477654,63.094,19.272,19.263,34.262]
[1693898490666,89.245,19.272,19.263,8.098]
[1693898491247,89.245,19.272,19.258,42.04255319]
[1693898491568,89.245,19.272,19.259,20.0]
[1693898491755,89.245,19.272,19.259,28.1]
[1693898496568,55.0,19.272,19.259,28.1]
[1693898496764,55.0,19.272,19.26,26.89]
[1693898496962,55.0,19.272,19.263,34.261]
[1693898499760,95.6339,19.273,19.263,34.261]
[1693898500862,8.093,19.275,19.263,34.261]
[1693898501058,55.0,19.274,19.263,34.261]
[1693898502364,55.0,19.275,19.263,34.261]
[1693898502567,63.093,19.275,19.263,34.261]
[1693898503272,55.0,19.275,19.263,34.261]
[1693898504073,63.093,19.275,19.263,34.261]
[1693898511271,55.0,19.275,19.263,34.261]
[1693898511469,63.093,19.275,19.263,34.261]
[1693898516190,63.093,19.275,19.263,8.098]
[1693898528781,8.093,19.275,19.263,8.098]
[1693898533487,26.144,19.278,19.263,8.098]
[1693898533692,8.093,19.275,19.263,8.098]
[1693898539878,8.093,19.275,19.264,55.0]
[1693898540086,8.093,19.275,19.267,8.096]
[1693898555602,4.05455266,19.279,19.268,75.0]
[1693898555912,4.05455266,19.279,19.271,91.325]
[1693898556112,95.9005,19.285,19.272,55.53693469]
[1693898556297,4.40767567,19.284,19.275,91.305]
[1693898556816,53.017,19.29,19.275,91.305]
[1693898556817,8.088,19.286,19.275,91.305]
[1693898556993,4.40767567,19.285,19.275,91.305]
[1693898557703,8.088,19.287,19.275,91.305]
[1693898557901,4.40767567,19.286,19.275,91.305]
[1693898558209,4.40767567,19.287,19.275,91.305]
[1693898558395,4.40767567,19.288,19.275,91.305]
[1693898559208,12.49567567,19.288,19.275,91.305]
[1693898560806,12.49567567,19.288,19.28,26.89]
[1693898560807,4.40767567,19.288,19.28,26.89]
[1693898561005,95.9005,19.291,19.282,91.273]
[1693898561202,95.9005,19.291,19.283,0.53693469]
[1693898561389,95.9005,19.291,19.282,91.273]
[1693898561390,95.9005,19.291,19.285,8.089]
[1693898561796,8.085,19.293,19.285,8.089]
[1693898561996,55.0,19.292,19.285,8.089]
[1693898563796,63.086,19.292,19.285,8.089]
[1693898563997,2.12388671,19.291,19.285,8.089]
[1693898564211,63.086,19.292,19.285,8.089]
[1693898564411,10.24067576,19.291,19.285,8.089]
[1693898564606,8.086,19.291,19.285,8.089]
[1693898565910,55.0,19.292,19.285,8.089]
[1693898566098,55.0,19.293,19.285,8.089]
[1693898568912,63.085,19.293,19.285,8.089]
[1693898569808,55.0,19.293,19.285,8.089]
[1693898570209,2.19750277,19.292,19.285,8.089]
[1693898571717,4.40767567,19.297,19.285,8.089]
[1693898572102,12.49167567,19.297,19.285,8.089]
[1693898572504,4.40767567,19.297,19.285,8.089]
[1693898573315,12.49167567,19.297,19.285,8.089]
[1693898573911,4.40767567,19.295,19.285,8.089]
[1693898574908,12.49267567,19.295,19.285,8.089]
[1693898575522,4.40767567,19.295,19.285,8.089]
[1693898580628,4.40767567,19.295,19.285,7.8946]
[1693898587925,4.40767567,19.295,19.29,26.89]
[1693898588128,391.5,19.306,19.291,194.92093469]
[1693898588328,3.34351942,19.305,19.291,194.92093469]
[1693898588520,12.48767567,19.307,19.291,194.92093469]
[1693898589920,4.40767567,19.305,19.291,194.92093469]
[1693898595339,4.40767567,19.305,19.291,194.384]
[1693898600133,12.48767567,19.305,19.291,194.384]
[1693898600324,4.40767567,19.303,19.291,194.384]
[1693898602537,4.40767567,19.303,19.291,210.1363316]
[1693898603443,4.40767567,19.303,19.291,194.384]
[1693898604841,4.40767567,19.306,19.291,194.384]
[1693898605038,59.40767567,19.306,19.292,55.0]
[1693898605239,59.40767567,19.306,19.296,34.203]
[1693898606631,67.48767567,19.306,19.296,34.203]
[1693898633866,67.48767567,19.306,19.296,8.084]
[1693898634070,67.48767567,19.306,19.295,8.084]
[1693898647055,59.40767567,19.306,19.295,8.084]
[1693898648067,4.40767567,19.306,19.295,8.084]
[1693898650572,12.48767567,19.306,19.295,8.084]
[1693898650864,55.0,19.305,19.295,8.084]
[1693898651071,4.40767567,19.304,19.295,8.084]
[1693898653168,12.48867567,19.304,19.295,8.084]
[1693898665287,4.40767567,19.304,19.295,8.084]
[1693898671881,12.48867567,19.304,19.295,8.084]
[1693898673389,55.0,19.303,19.295,8.084]
[1693898673697,4.40767567,19.302,19.295,8.084]
[1693898673988,55.0,19.303,19.295,34.204]
[1693898676795,63.081,19.303,19.295,8.084]
[1693898677492,98.5439,19.309,19.295,8.084]
[1693898677692,8.08,19.307,19.295,8.084]
[1693898677883,8.08,19.305,19.295,8.084]
[1693898678196,3.96496547,19.304,19.295,8.084]
[1693898678395,12.04596547,19.304,19.295,8.084]
[1693898679994,3.96496547,19.302,19.295,8.084]
[1693898680177,55.0,19.303,19.295,8.084]
[1693898680594,55.0,19.304,19.295,8.084]
[1693898680898,2.4708666,19.303,19.295,8.084]
[1693898694507,8.081,19.303,19.295,8.084]
[1693898694887,1.99862716,19.302,19.295,8.084]
[1693898697197,8.082,19.302,19.295,8.084]
[1693898697600,11.03241546,19.303,19.295,8.084]
[1693898697800,55.0,19.302,19.295,8.084]
[1693898698001,2.95141546,19.301,19.295,8.084]
[1693898698198,55.0,19.302,19.295,8.084]
[1693898707703,8.08,19.305,19.295,8.084]
[1693898707905,57.91675871,19.304,19.295,8.084]
[1693898709022,55.0,19.303,19.295,8.084]
[1693898709204,2.91675871,19.302,19.295,8.084]
[1693898709405,3.3770065,19.304,19.295,8.084]
[1693898716621,11.4580065,19.304,19.295,8.084]
[1693898716923,55.0,19.303,19.295,8.084]
[1693898717225,3.3770065,19.302,19.295,8.084]
[1693898728533,8.082,19.302,19.295,8.084]
[1693898731444,63.081,19.303,19.295,8.084]
[1693898733138,2.19232782,19.302,19.295,8.084]
[1693898733336,55.0,19.303,19.295,8.084]
[1693898733543,55.0,19.304,19.295,8.084]
[1693898733744,2.47370033,19.303,19.295,8.084]
[1693898735235,63.081,19.304,19.295,8.084]
[1693898738046,2.19487372,19.303,19.295,8.084]
[1693898741050,2.48999304,19.304,19.295,8.084]
[1693898744055,57.94357666,19.305,19.295,8.084]
[1693898745155,66.02357666,19.305,19.295,8.084]
[1693898746353,11.02357666,19.305,19.295,8.084]
[1693898749059,55.0,19.304,19.295,8.084]
[1693898749359,8.082,19.302,19.295,8.084]
[1693898752154,55.0,19.304,19.295,8.084]
[1693898752358,2.02574511,19.303,19.295,8.084]
[1693898754260,2.43852536,19.304,19.295,8.084]
[1693898754559,2.99018682,19.306,19.295,8.084]
[1693898755463,57.99018682,19.306,19.295,8.084]
[1693898756263,66.07018682,19.306,19.295,8.084]
[1693898759663,57.99018682,19.306,19.295,8.084]
[1693898760658,66.07018682,19.306,19.295,8.084]
[1693898761465,66.07018682,19.306,19.296,0.51553006]
[1693898761668,66.07018682,19.306,19.299,8.083]
[1693898761854,63.08,19.306,19.299,8.083]
[1693898767869,97.3339,19.307,19.299,8.083]
[1693898768174,97.2135,19.313,19.3,26.89]
[1693898768356,97.2135,19.313,19.305,34.186]
[1693898768558,8.077,19.315,19.305,34.186]
[1693898768957,2.33539305,19.314,19.305,34.186]
[1693898769157,8.077,19.314,19.305,34.186]
[1693898769359,55.0,19.313,19.305,34.186]
[1693898773776,55.0,19.314,19.305,34.186]
[1693898775665,1.94150327,19.313,19.305,34.186]
[1693898775865,55.0,19.314,19.305,34.186]
[1693898776866,1.98631753,19.313,19.305,34.186]
[1693898777068,1.98631753,19.314,19.305,34.186]
[1693898777266,100.9889,19.316,19.305,34.186]
[1693898777267,2.20475731,19.315,19.305,34.186]
[1693898777462,100.9889,19.316,19.305,34.186]
[1693898777779,2.14014375,19.315,19.305,34.186]
[1693898778383,57.14014375,19.315,19.305,34.186]
[1693898782168,65.21614375,19.315,19.305,34.186]
[1693898784087,10.21614375,19.315,19.305,34.186]
[1693898788869,8.075,19.317,19.308,34.181]
[1693898789077,63.075,19.317,19.309,20.0]
[1693898789274,63.075,19.317,19.311,8.078]
[1693898789782,55.0,19.317,19.311,8.078]
[1693898789970,55.0,19.318,19.311,8.078]
[1693898790491,63.075,19.318,19.311,8.078]
[1693898791485,55.0,19.318,19.311,8.078]
[1693898792791,55.0,19.318,19.309,20.0]
[1693898793095,2.22768801,19.317,19.311,8.078]
[1693898793284,55.0,19.318,19.311,8.078]
[1693898796688,55.0,19.319,19.311,8.078]
[1693898804696,2.0149979,19.318,19.311,8.078]
[1693898804894,55.0,19.319,19.311,8.078]
[1693898805583,55.0,19.32,19.311,8.078]
[1693898805791,2.53293146,19.319,19.311,8.078]
[1693898837198,56.69593146,19.319,19.305,8.08]
[1693898837390,55.0,19.318,19.305,8.08]
[1693898837707,4.32556168,19.314,19.305,8.08]
[1693898837903,8.077,19.313,19.305,8.08]
[1693898838099,8.077,19.314,19.305,8.08]
[1693898838303,4.32556168,19.312,19.305,8.08]
[1693898839705,55.0,19.313,19.305,8.08]
[1693898839914,1.94106864,19.312,19.305,8.08]
[1693898840115,2.64192967,19.313,19.305,8.08]
[1693898841709,55.0,19.314,19.305,8.08]
[1693898841896,2.50568189,19.314,19.305,8.08]
[1693898842494,2.53779054,19.315,19.305,8.08]
[1693898844005,57.53779054,19.315,19.305,8.08]
[1693898844502,2.53779054,19.315,19.305,8.08]
[1693898847196,10.61379054,19.315,19.305,8.08]
[1693898852521,10.61379054,19.315,19.305,23.74683937]
[1693898853016,10.61379054,19.315,19.305,8.08]
[1693898858721,8.076,19.315,19.305,8.08]
[1693898861629,2.84061923,19.314,19.305,8.08]
[1693898866414,2.84281906,19.315,19.305,8.08]
[1693898866931,12.26050684,19.317,19.305,8.08]
[1693898869024,4.18550684,19.317,19.305,8.08]
[1693898869227,59.18550684,19.317,19.305,8.08]
[1693898869429,67.26050684,19.317,19.305,8.08]
[1693898880930,4.18550684,19.317,19.305,8.08]
[1693898881139,4.18550684,19.317,19.306,55.0]
[1693898881330,97.3735,19.318,19.309,91.148]
[1693898881737,28.075,19.319,19.309,91.148]
[1693898881938,2.2040517,19.318,19.309,91.148]
[1693898884933,4.28954839,19.32,19.309,91.148]
[1693898885235,59.28954839,19.32,19.309,91.148]
[1693898885537,4.28954839,19.318,19.309,91.148]
[1693898886431,12.36454839,19.318,19.309,34.18]
[1693898887441,12.36454839,19.318,19.309,8.079]
[1693898889737,12.36454839,19.318,19.308,8.079]
[1693898889942,55.0,19.317,19.308,8.079]
[1693898890142,8.076,19.315,19.308,8.079]
[1693898890937,4.28954839,19.314,19.307,8.079]
[1693898891136,8.077,19.312,19.307,8.079]
[1693898891335,8.077,19.313,19.307,8.079]
[1693898892539,8.077,19.314,19.307,8.079]
[1693898894839,55.0,19.313,19.3,34.972]
[1693898895034,55.0,19.313,19.3,26.89]
[1693898895035,34.18,19.31,19.3,26.89]
[1693898895233,59.28954839,19.309,19.3,26.89]
[1693898895544,8.08,19.307,19.3,34.972]
[1693898898146,34.184,19.307,19.298,0.53693469]
[1693898898346,55.0,19.306,19.298,28.61993469]
[1693898898649,55.0,19.306,19.3,26.89]
[1693898898943,55.0,19.307,19.301,8.082]
[1693898902446,63.08,19.307,19.301,8.082]
[1693898903547,55.0,19.307,19.301,8.082]
[1693898903739,63.079,19.308,19.301,8.082]
[1693898906149,55.0,19.308,19.301,8.082]
[1693898909349,4.28954839,19.311,19.301,8.082]
[1693898909935,12.36754839,19.311,19.301,8.082]
[1693898910359,4.28954839,19.311,19.301,8.082]
[1693898910551,59.28954839,19.311,19.301,8.082]
[1693898910851,55.0,19.311,19.301,8.082]
[1693898911256,4.28954839,19.31,19.301,8.082]
[1693898911438,55.0,19.31,19.301,8.082]
[1693898912954,4.28954839,19.31,19.301,8.082]
[1693898915062,104.5239,19.312,19.301,8.082]
[1693898916045,4.28954839,19.311,19.301,8.082]
[1693898916440,96.4469,19.312,19.301,8.082]
[1693898919554,4.28954839,19.318,19.301,8.082]
[1693898919757,4.28954839,19.318,19.301,34.04678249]
[1693898919958,4.28954839,19.318,19.301,89.0538669]
[1693898921465,12.36454839,19.318,19.301,89.0538669]
[1693898921648,12.36454839,19.318,19.301,63.08908441]
[1693898921845,8.076,19.315,19.301,63.08908441]
[1693898922044,4.40767567,19.314,19.301,63.08908441]
[1693898922964,63.077,19.314,19.301,8.082]
[1693898923163,4.40767567,19.313,19.301,8.082]
[1693898923354,8.078,19.311,19.301,8.082]
[1693898925354,34.177,19.311,19.301,8.082]
[1693898925557,55.0,19.31,19.301,8.082]
[1693898925848,63.078,19.31,19.301,8.082]
[1693898928955,95.5132,19.313,19.301,8.082]
[1693898929361,55.0,19.312,19.301,8.082]
[1693898933072,4.40767567,19.311,19.301,8.082]
[1693898933267,95.5132,19.313,19.301,8.082]
[1693898933476,8.075,19.317,19.301,8.082]
[1693898933667,20.0,19.319,19.301,8.082]
[1693898933668,4.40767567,19.318,19.307,91.156]
[1693898934063,12.48267567,19.318,19.307,91.156]
[1693898935477,4.40767567,19.316,19.307,91.156]
[1693898939878,4.40767567,19.316,19.31,26.89]
[1693898940181,20.0,19.319,19.311,34.175]
[1693898940182,4.40767567,19.318,19.311,34.175]
[1693898940382,59.40767567,19.318,19.311,34.175]
[1693898940570,55.0,19.318,19.311,34.175]
[1693898940777,4.40767567,19.317,19.311,34.175]
[1693898940970,55.0,19.318,19.311,34.175]
[1693898941459,55.0,19.318,19.311,8.077]
[1693898941863,4.40767567,19.317,19.311,8.077]
[1693898942477,59.40767567,19.318,19.311,8.077]
[1693898943480,67.48267567,19.318,19.311,8.077]
[1693898944180,59.40767567,19.318,19.311,8.077]
[1693898946375,4.40767567,19.318,19.311,8.077]
[1693898946581,4.40767567,19.319,19.311,8.077]
[1693898946883,4.40767567,19.322,19.311,8.077]
[1693898947186,4.40767567,19.324,19.311,8.077]
[1693898947864,59.40767567,19.324,19.311,8.077]
[1693898948678,4.40767567,19.322,19.311,8.077]
[1693898948978,59.40767567,19.322,19.311,8.077]
[1693898949157,4.40767567,19.322,19.311,8.077]
[1693898949865,12.48067567,19.322,19.311,8.077]
[1693898953681,4.40767567,19.322,19.311,8.077]
[1693898953881,12.48067567,19.323,19.311,8.077]
[1693898954973,55.0,19.322,19.311,8.077]
[1693898955175,8.075,19.319,19.311,8.077]
[1693898955469,8.075,19.317,19.311,8.077]
[1693898956284,8.075,19.318,19.311,8.077]
[1693898956486,4.40767567,19.317,19.311,8.077]
[1693898961679,8.075,19.318,19.311,8.077]
[1693898962285,8.074,19.32,19.311,8.077]
[1693898962492,59.40767567,19.319,19.311,8.077]
[1693898962690,67.48267567,19.319,19.311,8.077]
[1693898966997,12.48267567,19.319,19.311,8.077]
[1693898969397,55.0,19.318,19.311,8.077]
[1693898969692,4.40767567,19.317,19.311,8.077]
[1693898971185,4.40767567,19.323,19.311,8.077]
[1693898971586,59.40767567,19.323,19.311,8.077]
[1693898972688,8.074,19.321,19.311,8.077]
[1693898972891,59.40767567,19.32,19.311,8.077]
[1693898973090,67.48167567,19.32,19.311,8.077]
[1693898977883,59.40767567,19.32,19.311,8.077]
[1693898982208,67.48167567,19.32,19.311,8.077]
[1693898984703,59.40767567,19.32,19.311,8.077]
[1693898985801,4.40767567,19.32,19.311,8.077]
[1693898991907,12.48167567,19.32,19.311,8.077]
[1693898995805,4.40767567,19.32,19.311,8.077]
[1693898996313,4.40767567,19.321,19.311,8.077]
[1693898996997,12.48067567,19.324,19.311,8.077]
[1693898997198,55.0,19.323,19.311,8.077]
[1693898997410,4.40767567,19.322,19.311,8.077]
[1693899000115,12.48067567,19.322,19.311,8.077]
[1693899001118,4.40767567,19.322,19.311,8.077]
[1693899002501,4.40767567,19.324,19.311,8.077]
[1693899002707,59.40767567,19.324,19.311,8.077]
[1693899005126,67.47967567,19.324,19.311,8.077]
[1693899010021,4.40767567,19.324,19.311,8.077]
[1693899011221,4.40767567,19.327,19.311,65.79644426]
[1693899011404,4.35823663,19.328,19.316,194.132]
[1693899011607,4.35823663,19.328,19.32,91.094]
[1693899011913,4.35823663,19.328,19.32,117.984]
[1693899012510,4.35823663,19.328,19.32,220.986]
[1693899012823,4.35823663,19.328,19.323,91.081]
[1693899016120,4.35823663,19.328,19.323,8.073]
[1693899016422,4.35823663,19.328,19.321,8.073]
[1693899016606,4.35823663,19.328,19.323,8.073]
[1693899025821,4.35823663,19.328,19.322,8.073]
[1693899026435,1.94236035,19.327,19.322,8.073]
[1693899027130,4.35823663,19.328,19.322,8.073]
[1693899027832,2.10043626,19.327,19.322,8.073]
[1693899030936,4.35823663,19.328,19.322,8.073]
[1693899031325,2.13360667,19.327,19.322,8.073]
[1693899032925,4.35823663,19.328,19.322,8.073]
[1693899033521,3.11356341,19.334,19.323,20.0]
[1693899033728,8.063,19.347,19.326,194.034]
[1693899033729,4.40767567,19.346,19.326,194.034]
[1693899033937,4.40767567,19.346,19.33,26.89]
[1693899034230,4.40767567,19.347,19.34,26.89]
[1693899034535,4.40767567,19.354,19.342,193.876]
[1693899034754,95.00487567,19.362,19.343,20.0]
[1693899035033,12.46467567,19.362,19.35,26.89]
[1693899035334,8.055,19.365,19.353,64.898]
[1693899035528,12.46367567,19.364,19.353,64.898]
[1693899035731,4.40767567,19.365,19.353,64.898]
[1693899035929,4.40767567,19.366,19.353,64.898]
[1693899036135,8.055,19.365,19.353,64.898]
[1693899036337,8.055,19.365,19.353,8.06]
[1693899036338,4.40767567,19.364,19.353,8.06]
[1693899036528,8.056,19.363,19.353,8.06]
[1693899036840,4.40767567,19.362,19.353,8.06]
[1693899037032,4.40767567,19.363,19.353,8.06]
[1693899037630,8.056,19.363,19.353,8.06]
[1693899037941,4.40767567,19.362,19.353,8.06]
[1693899038127,4.40767567,19.366,19.353,8.06]
[1693899038330,8.054,19.367,19.353,8.06]
[1693899038533,4.40767567,19.366,19.353,8.06]
[1693899038724,8.055,19.365,19.353,8.06]
[1693899038929,4.40767567,19.364,19.353,8.06]
[1693899039348,12.46367567,19.364,19.353,8.06]
[1693899039637,67.46367567,19.364,19.353,8.06]
[1693899040337,90.4445,19.363,19.353,8.06]
[1693899040540,67.46467567,19.362,19.353,8.06]
[1693899041045,67.46467567,19.362,19.352,8.061]
[1693899053032,67.46467567,19.362,19.342,56.869]
[1693899053237,20.0,19.361,19.346,8.063]
[1693899053437,8.059,19.357,19.346,8.063]